fUST/lending_fUST_20240613
["ID","MTS","AMOUNT","RATE_DAILY","PERIOD"]
[329347556,1718265048074,-375.4,0.00017678,2]
[329347557,1718265048086,-529.23116304,0.00017707,2]
[329347558,1718265048099,-500.0,0.00017707,2]
[329347559,1718265048115,-500.0,0.00017707,2]
[329347560,1718265048124,-500.0,0.00017707,2]
[329347561,1718265048134,-500.0,0.00017707,2]
[329347562,1718265048147,-500.0,0.00017707,2]
[329347564,1718265048157,-500.0,0.00017807,2]
[329347566,1718265048169,-500.0,0.00017808,2]
[329347567,1718265048184,-500.0,0.00017808,2]
[329347569,1718265048195,-951.81,0.00017808,2]
[329347570,1718265048206,-500.0,0.00017808,2]
[329347571,1718265048217,-500.0,0.00017808,2]
[329347572,1718265048227,-500.0,0.00017808,2]
[329347573,1718265048241,-304.37166635,0.00017808,2]
[329347574,1718265048254,-500.0,0.00017808,2]
[329347575,1718265048266,-3510.88,0.00017808,2]
[329347576,1718265048277,-526.46,0.00017808,2]
[329347577,1718265048308,-310.41,0.00017808,2]
[329347578,1718265048321,-500.0,0.00017808,2]
[329347579,1718265048331,-687.92,0.00017808,2]
[329347580,1718265048349,-500.0,0.00017808,2]
[329347581,1718265048360,-985.66,0.00017808,2]
[329347582,1718265048371,-1481.21,0.00017808,2]
[329347583,1718265048384,-779.53,0.00017808,2]
[329347584,1718265048403,-500.0,0.00017808,2]
[329347585,1718265048423,-500.0,0.00017808,2]
[329347586,1718265048435,-2157.95,0.00017808,2]
[329347587,1718265048457,-2620.03,0.00017808,2]
[329347588,1718265048472,-500.0,0.00017808,2]
[329347589,1718265048483,-567.51,0.00017808,2]
[329347590,1718265048493,-621.72,0.00017808,2]
[329347591,1718265048505,-500.0,0.00017808,2]
[329347592,1718265048517,-1082.11,0.00017808,2]
[329347593,1718265048552,-500.0,0.00017808,2]
[329347594,1718265048580,-500.0,0.00017808,2]
[329347595,1718265048615,-1220.96,0.00017808,2]
[329347596,1718265048627,-88888.0,0.000179,2]
[329347597,1718265048647,-1159.70013782,0.00017914,2]
[329347598,1718265048666,-500.0,0.00017999,2]
[329347599,1718265048678,-500.0,0.00017999,2]
[329347600,1718265048689,-876.95081653,0.00018,2]
[329347601,1718265048705,-36513.26324369,0.00018,2]
[329347602,1718265048723,-476.76775304,0.00018,2]
[329347603,1718265048736,-1355.76865896,0.00018,2]
[329347604,1718265048755,-2765.7597697,0.00018,2]
[329347605,1718265048770,-357.70631696,0.00018004,2]
[329347606,1718265048791,-5282.5380268,0.00018056,2]
[329347607,1718265048802,-500.0,0.00018081,2]
[329347608,1718265048814,-500.0,0.00018081,2]
[329347609,1718265048825,-500.0,0.00018082,2]
[329347610,1718265048837,-500.0,0.00018082,2]
[329347611,1718265048862,-951.81,0.00018082,2]
[329347612,1718265048924,-500.0,0.00018082,2]
[329347613,1718265048939,-500.0,0.00018082,2]
[329347614,1718265048952,-500.0,0.00018082,2]
[329347615,1718265048967,-3510.88,0.00018082,2]
[329347616,1718265048978,-527.52,0.00018082,2]
[329347617,1718265048990,-687.92,0.00018082,2]
[329347618,1718265049003,-500.0,0.00018082,2]
[329347619,1718265049016,-985.66,0.00018082,2]
[329347620,1718265049031,-1481.21,0.00018082,2]
[329347621,1718265049049,-779.53,0.00018082,2]
[329347622,1718265049069,-500.0,0.00018082,2]
[329347623,1718265049080,-500.0,0.00018082,2]
[329347624,1718265049091,-2157.95,0.00018082,2]
[329347625,1718265049105,-2620.03,0.00018082,2]
[329347626,1718265049125,-500.0,0.00018082,2]
[329347627,1718265049166,-567.51,0.00018082,2]
[329347628,1718265049179,-621.72,0.00018082,2]
[329347629,1718265049214,-500.0,0.00018082,2]
[329347630,1718265049229,-1082.11,0.00018082,2]
[329347631,1718265049263,-500.0,0.00018082,2]
[329347632,1718265049275,-500.0,0.00018082,2]
[329347633,1718265049321,-1220.96,0.00018082,2]
[329347634,1718265049331,-375.4,0.00018093,2]
[329347635,1718265049358,-621.40343405,0.00018129,2]
[329347636,1718265049369,-1024.51444186,0.00018199,2]
[329347637,1718265049396,-26940.88185422,0.000182,13]
[329347638,1718265049411,-5238.45211208,0.000182,2]
[329347639,1718265049421,-2356.73825951,0.000182,2]
[329347640,1718265049561,-20966.80322829,0.000182,2]
[329347641,1718265049711,-500.0,0.00016438,2]
[329347642,1718265049731,-375.54968914,0.000182,2]
[329347643,1718265049746,-7967.64444353,0.000182,2]
[329347644,1718265050012,-500.0,0.00016438,2]
[329347645,1718265050023,-176.49812983,0.00016712,2]
[329347657,1718265056617,-500.0,0.00016438,2]
[329347658,1718265056632,-500.0,0.00016438,2]
[329347659,1718265056646,-504.58936006,0.00016438,2]
[329347660,1718265056659,-506.31855387,0.00016438,2]
[329347661,1718265056670,-500.0,0.00016438,2]
[329347662,1718265056686,-323.50187017,0.00016712,2]
[329347663,1718265056698,-500.0,0.00016986,2]
[329347664,1718265056712,-500.0,0.0001726,2]
[329347665,1718265056725,-376.04969541,0.00017534,2]
[329347666,1718265056748,-5141.52394273,0.000182,2]
[329347681,1718265838361,1546.63521928,9.999e-05,2]
[329347682,1718265873731,300.39680964,9.999e-05,2]
[329347683,1718265893729,304.05957463,9.999e-05,2]
[329347688,1718266194523,-174.0467533,0.00014883,2]
[329347689,1718266194578,-56.50243035,0.00015238,2]
[329347690,1718266194657,-230.54918365,0.00015238,2]
[329347691,1718266194733,-230.54918365,0.00015238,2]
[329347705,1718266236293,-155.10384293,0.00015235,2]
[329347706,1718266236447,-2683.52570932,0.00015236,2]
[329347707,1718266236465,-42124.85895111,0.00015237,2]
[329347709,1718266236496,-7405.3010583,0.00015238,2]
[329347712,1718266236513,-300.0,0.00015238,2]
[329347713,1718266236526,-3000.0,0.00015253,2]
[329347714,1718266236537,-1035.3340754,0.00015372,2]
[329347716,1718266236564,-1855.64175372,0.00016338,2]
[329347718,1718266236577,-412.85183963,0.00016338,2]
[329347720,1718266236611,-155.08840647,0.00016435,2]
[329347722,1718266236627,-1788.28155787,0.00016435,2]
[329347723,1718266236638,-2120.15435773,0.00016435,2]
[329347725,1718266236663,-776.51840216,0.00016435,2]
[329347727,1718266236676,-155.07945815,0.00016435,2]
[329347729,1718266236687,-303.336601,0.00016435,2]
[329347731,1718266236701,-2037.29149856,0.00016435,2]
[329347732,1718266236724,-524.498606,0.00016435,2]
[329347735,1718266236760,-489.40086406,0.00016435,2]
[329347737,1718266236779,-372.78673862,0.00016435,2]
[329347739,1718266236791,-1024.51444186,0.00016436,2]
[329347741,1718266236809,-187.41110824,0.00016436,2]
[329347743,1718266236832,-164.71066412,0.00016436,2]
[329347745,1718266236873,-552.55976636,0.00016436,2]
[329347747,1718266236918,-32248.05689253,0.00016437,2]
[329347837,1718266243049,-5140.90584341,0.00016437,2]
[329347871,1718266243889,-997.51680281,0.00016437,2]
[329347873,1718266243912,-675.49373594,0.00016437,2]
[329347874,1718266243922,-505.28105733,0.00016438,2]
[329347876,1718266243940,-219.55168201,0.00016438,2]
[329347877,1718266243956,-500.0,0.00016438,2]
[329347880,1718266243980,-500.0,0.00016438,2]
[329347883,1718266243996,-500.0,0.00016438,2]
[329347884,1718266244022,-500.0,0.00016438,2]
[329347887,1718266244034,-500.0,0.00016438,2]
[329347889,1718266244045,-248.35772437,0.00016438,2]
[329347891,1718266244056,-500.0,0.00016438,2]
[329347894,1718266244085,-500.0,0.00016438,2]
[329347896,1718266244102,-500.0,0.00016438,2]
[329347898,1718266244117,-501.80438994,0.00016438,2]
[329347900,1718266244131,-500.0,0.00016438,2]
[329347901,1718266244143,-500.0,0.00016438,2]
[329347903,1718266244156,-500.0,0.00016438,2]
[329347904,1718266244166,-500.0,0.00016438,2]
[329347906,1718266244183,-500.0,0.00016438,2]
[329347908,1718266244199,-500.0,0.00016438,2]
[329347909,1718266244210,-500.0,0.00016438,2]
[329347910,1718266244223,-500.0,0.00016438,2]
[329347911,1718266244236,-500.0,0.00016438,2]
[329347914,1718266244253,-500.0,0.00016438,2]
[329347915,1718266244265,-500.0,0.00016438,2]
[329347917,1718266244292,-500.0,0.00016438,2]
[329347919,1718266244311,-491.76773509,0.00016438,2]
[329347921,1718266244322,-500.0,0.00016438,2]
[329347924,1718266244369,-500.0,0.00016438,2]
[329347926,1718266244383,-500.0,0.00016438,2]
[329347928,1718266244414,-500.0,0.00016438,2]
[329347931,1718266244432,-500.0,0.00016438,2]
[329347933,1718266244460,-500.0,0.00016438,2]
[329347934,1718266244474,-500.0,0.00016438,2]
[329347936,1718266244490,-500.0,0.00016438,2]
[329347938,1718266244510,-500.0,0.00016438,2]
[329347941,1718266244538,-500.0,0.00016438,2]
[329347943,1718266244560,-500.0,0.00016438,2]
[329347945,1718266244580,-500.0,0.00016438,2]
[329347947,1718266244594,-500.0,0.00016438,2]
[329347949,1718266244611,-515.40514854,0.00016438,2]
[329347951,1718266244659,-500.0,0.00016438,2]
[329347952,1718266244676,-500.0,0.00016438,2]
[329347955,1718266244726,-500.0,0.00016438,2]
[329347957,1718266244738,-250.54608254,0.00016438,2]
[329347959,1718266244772,-500.0,0.00016438,2]
[329347961,1718266244784,-500.0,0.00016438,2]
[329347963,1718266244796,-500.0,0.00016438,2]
[329347965,1718266244808,-500.0,0.00016438,2]
[329347966,1718266244826,-500.0,0.00016438,2]
[329347968,1718266244852,-507.50144394,0.00016438,2]
[329347970,1718266244866,-953.27,0.00016438,2]
[329347972,1718266244886,-515.1649852,0.00016438,2]
[329347974,1718266244920,-500.0,0.00016438,2]
[329347977,1718266244946,-500.0,0.00016438,2]
[329347978,1718266244961,-500.0,0.00016438,2]
[329347980,1718266244989,-500.0,0.00016438,2]
[329347982,1718266245006,-513.88887225,0.00016438,2]
[329347983,1718266245019,-500.0,0.00016438,2]
[329347985,1718266245035,-500.0,0.00016438,2]
[329347988,1718266245059,-500.0,0.00016438,2]
[329347989,1718266245074,-500.0,0.00016438,2]
[329347992,1718266245086,-513.76683172,0.00016438,2]
[329347994,1718266245101,-500.0,0.00016438,2]
[329347996,1718266245113,-502.92790254,0.00016438,2]
[329348001,1718266245164,-500.0,0.00016438,2]
[329348004,1718266245178,-500.0,0.00016438,2]
[329348006,1718266245190,-500.0,0.00016438,2]
[329348007,1718266245207,-500.0,0.00016438,2]
[329348008,1718266245230,-510.34251671,0.00016438,2]
[329348010,1718266245281,-500.0,0.00016438,2]
[329348012,1718266245338,-500.0,0.00016438,2]
[329348014,1718266245368,-500.0,0.00016438,2]
[329348015,1718266245381,-500.0,0.00016438,2]
[329348018,1718266245395,-500.2310887,0.00016438,2]
[329348019,1718266245408,-500.0,0.00016438,2]
[329348022,1718266245438,-500.0,0.00016438,2]
[329348024,1718266245466,-500.0,0.00016438,2]
[329348025,1718266245496,-500.0,0.00016438,2]
[329348026,1718266245508,-500.0,0.00016438,2]
[329348028,1718266245521,-169.04380073,0.00016438,2]
[329348030,1718266245568,-501.53972763,0.00016438,2]
[329348032,1718266245580,-500.0,0.00016438,2]
[329348033,1718266245593,-500.0,0.00016438,2]
[329348036,1718266245612,-432.67855244,0.00016438,2]
[329348038,1718266245631,-500.0,0.00016438,2]
[329348039,1718266245643,-500.0,0.00016438,2]
[329348041,1718266245654,-500.0,0.00016438,2]
[329348043,1718266245667,-500.0,0.00016438,2]
[329348044,1718266245681,-500.0,0.00016438,2]
[329348046,1718266245698,-500.0,0.00016438,2]
[329348048,1718266245716,-500.0,0.00016438,2]
[329348050,1718266245745,-500.0,0.00016438,2]
[329348051,1718266245760,-500.0,0.00016438,2]
[329348053,1718266245776,-500.0,0.00016438,2]
[329348055,1718266245789,-504.80687186,0.00016438,2]
[329348057,1718266245810,-500.0,0.00016438,2]
[329348059,1718266245832,-2157.95,0.00016438,2]
[329348061,1718266245845,-569.9151138,0.00016438,2]
[329348062,1718266245893,-500.0,0.00016438,2]
[329348063,1718266245906,-500.0,0.00016438,2]
[329348064,1718266245917,-441.01440565,0.00016438,2]
[329348065,1718266245949,-500.0,0.00016438,2]
[329348066,1718266245962,-500.0,0.00016438,2]
[329348067,1718266245974,-504.99862963,0.00016438,2]
[329348068,1718266246036,-500.0,0.00016438,2]
[329348069,1718266246055,-178.16112142,0.00016438,2]
[329348070,1718266246097,-500.0,0.00016438,2]
[329348071,1718266246121,-500.0,0.00016438,2]
[329348072,1718266246148,-500.0,0.00016438,2]
[329348073,1718266246159,-458.74528281,0.00016438,2]
[329348074,1718266246181,-500.0,0.00016438,2]
[329348075,1718266246208,-500.0,0.00016438,2]
[329348076,1718266246231,-973.35,0.00016438,2]
[329348077,1718266246271,-500.0,0.00016438,2]
[329348078,1718266246295,-500.46554124,0.00016438,2]
[329348079,1718266246343,-500.0,0.00016438,2]
[329348080,1718266246370,-500.0,0.00016438,2]
[329348081,1718266246409,-500.0,0.00016438,2]
[329348082,1718266246424,-500.0,0.00016438,2]
[329348083,1718266246438,-500.0,0.00016438,2]
[329348084,1718266246452,-500.0,0.00016438,2]
[329348085,1718266246463,-1295.43,0.00016438,2]
[329348086,1718266246509,-301.86469276,0.00016438,2]
[329348087,1718266246526,-502.97282869,0.00016438,2]
[329348088,1718266246537,-500.0,0.00016438,2]
[329348090,1718266246551,-500.0,0.00016438,2]
[329348092,1718266246565,-500.0,0.00016438,2]
[329348093,1718266246616,-500.0,0.00016438,2]
[329348094,1718266246628,-500.0,0.00016438,2]
[329348095,1718266246641,-167.36305398,0.00016438,2]
[329348096,1718266246652,-500.0,0.00016438,2]
[329348097,1718266246680,-500.0,0.00016438,2]
[329348098,1718266246694,-500.0,0.00016438,2]
[329348099,1718266246716,-500.0,0.00016438,2]
[329348100,1718266246741,-500.0,0.00016438,2]
[329348101,1718266246764,-627.74619491,0.00016438,2]
[329348102,1718266246776,-3663.23,0.00016438,2]
[329348103,1718266246787,-500.0,0.00016438,2]
[329348104,1718266246800,-500.0,0.00016438,2]
[329348105,1718266246812,-500.0,0.00016438,2]
[329348106,1718266246846,-500.0,0.00016438,2]
[329348107,1718266246857,-516.26010768,0.00016438,2]
[329348108,1718266246893,-500.0,0.00016438,2]
[329348110,1718266246905,-500.0,0.00016438,2]
[329348111,1718266246946,-523.18071315,0.00016438,2]
[329348113,1718266246963,-513.43542898,0.00016438,2]
[329348115,1718266246975,-500.0,0.00016438,2]
[329348116,1718266247024,-533.9,0.00016438,2]
[329348117,1718266247068,-533.9,0.00016438,2]
[329348118,1718266247084,-504.47455472,0.00016438,2]
[329348119,1718266247116,-533.9,0.00016438,2]
[329348120,1718266247159,-503.80005434,0.00016438,2]
[329348121,1718266247188,-511.01147129,0.00016438,2]
[329348122,1718266247208,-500.0,0.00016438,2]
[329348123,1718266247226,-500.0,0.00016438,2]
[329348124,1718266247242,-522.92237026,0.00016438,2]
[329348125,1718266247256,-500.0,0.00016438,2]
[329348126,1718266247281,-500.0,0.00016438,2]
[329348127,1718266247303,-500.0,0.00016438,2]
[329348128,1718266247314,-500.0,0.00016438,2]
[329348129,1718266247333,-500.0,0.00016438,2]
[329348130,1718266247360,-500.0,0.00016438,2]
[329348131,1718266247373,-500.0,0.00016438,2]
[329348132,1718266247384,-500.0,0.00016438,2]
[329348133,1718266247397,-500.0,0.00016438,2]
[329348134,1718266247412,-1073.74,0.00016438,2]
[329348137,1718266247435,-503.30362125,0.00016438,2]
[329348138,1718266247481,-500.0,0.00016438,2]
[329348139,1718266247508,-500.0,0.00016438,2]
[329348140,1718266247559,-500.0,0.00016438,2]
[329348141,1718266247587,-500.0,0.00016438,2]
[329348142,1718266247603,-751.61,0.00016438,2]
[329348143,1718266247617,-540.3795066,0.00016438,2]
[329348144,1718266247635,-834.37,0.00016438,2]
[329348146,1718266247663,-500.0,0.00016438,2]
[329348147,1718266247684,-500.0,0.00016438,2]
[329348150,1718266247697,-500.0,0.00016438,2]
[329348151,1718266247709,-522.74759719,0.00016438,2]
[329348153,1718266247723,-500.0,0.00016438,2]
[329348156,1718266247752,-500.0,0.00016438,2]
[329348158,1718266247767,-500.0,0.00016438,2]
[329348159,1718266247781,-500.0,0.00016438,2]
[329348162,1718266247796,-500.0,0.00016438,2]
[329348163,1718266247829,-500.0,0.00016438,2]
[329348165,1718266247841,-500.0,0.00016438,2]
[329348167,1718266247868,-500.0,0.00016438,2]
[329348169,1718266247902,-500.0,0.00016438,2]
[329348171,1718266247925,-1652.68,0.00016438,2]
[329348173,1718266247939,-500.0,0.00016438,2]
[329348174,1718266247953,-500.0,0.00016438,2]
[329348178,1718266247994,-500.0,0.00016438,2]
[329348179,1718266248019,-500.0,0.00016438,2]
[329348180,1718266248030,-500.0,0.00016438,2]
[329348182,1718266248041,-500.0,0.00016438,2]
[329348183,1718266248061,-500.0,0.00016438,2]
[329348184,1718266248072,-742.37,0.00016438,2]
[329348185,1718266248083,-500.0,0.00016438,2]
[329348186,1718266248110,-500.0,0.00016438,2]
[329348187,1718266248121,-167.85904735,0.00016438,2]
[329348188,1718266248151,-500.0,0.00016438,2]
[329348189,1718266248162,-500.0,0.00016438,2]
[329348190,1718266248176,-500.0,0.00016438,2]
[329348191,1718266248188,-500.0,0.00016438,2]
[329348192,1718266248199,-523.88950144,0.00016438,2]
[329348193,1718266248217,-500.0,0.00016438,2]
[329348195,1718266248230,-501.64981293,0.00016438,2]
[329348197,1718266248240,-500.0,0.00016438,2]
[329348198,1718266248252,-503.83411746,0.00016438,2]
[329348199,1718266248264,-500.0,0.00016438,2]
[329348200,1718266248287,-500.0,0.00016438,2]
[329348201,1718266248299,-500.0,0.00016438,2]
[329348202,1718266248328,-2619.21,0.00016438,2]
[329348203,1718266248366,-500.0,0.00016438,2]
[329348204,1718266248401,-500.0,0.00016438,2]
[329348205,1718266248413,-500.0,0.00016438,2]
[329348206,1718266248424,-500.0,0.00016438,2]
[329348207,1718266248437,-500.0,0.00016438,2]
[329348208,1718266248451,-500.0,0.00016438,2]
[329348209,1718266248463,-500.0,0.00016438,2]
[329348210,1718266248491,-500.0,0.00016438,2]
[329348211,1718266248518,-500.0,0.00016438,2]
[329348212,1718266248564,-500.0,0.00016438,2]
[329348213,1718266248585,-500.0,0.00016438,2]
[329348214,1718266248607,-500.0,0.00016438,2]
[329348215,1718266248623,-500.0,0.00016438,2]
[329348216,1718266248633,-508.5307097,0.00016438,2]
[329348217,1718266248664,-500.0,0.00016438,2]
[329348218,1718266248704,-500.0,0.00016438,2]
[329348219,1718266248719,-500.0,0.00016438,2]
[329348220,1718266248730,-500.0,0.00016438,2]
[329348221,1718266248741,-500.0,0.00016438,2]
[329348222,1718266248752,-509.1047877,0.00016438,2]
[329348223,1718266248770,-516.00511711,0.00016438,2]
[329348224,1718266248785,-485.26980901,0.00016438,2]
[329348225,1718266248796,-500.0,0.00016438,2]
[329348226,1718266248818,-500.0,0.00016438,2]
[329348227,1718266248829,-500.0,0.00016711,2]
[329348228,1718266248841,-500.0,0.00016711,2]
[329348229,1718266248868,-500.0,0.00016711,2]
[329348230,1718266248885,-500.0,0.00016711,2]
[329348231,1718266248901,-500.0,0.00016711,2]
[329348232,1718266248912,-505.79603447,0.00016712,2]
[329348233,1718266248924,-500.0,0.00016712,2]
[329348234,1718266248941,-500.0,0.00016712,2]
[329348235,1718266248952,-500.0,0.00016712,2]
[329348236,1718266248983,-500.0,0.00016712,2]
[329348237,1718266248993,-500.0,0.00016712,2]
[329348238,1718266249003,-500.0,0.00016712,2]
[329348239,1718266249028,-500.0,0.00016712,2]
[329348240,1718266249039,-500.0,0.00016712,2]
[329348241,1718266249051,-500.0,0.00016712,2]
[329348242,1718266249066,-468.03106526,0.00016712,2]
[329348243,1718266249080,-500.0,0.00016712,2]
[329348244,1718266249100,-500.0,0.00016712,2]
[329348245,1718266249113,-500.0,0.00016712,2]
[329348247,1718266249131,-500.0,0.00016712,2]
[329348249,1718266249149,-953.27,0.00016712,2]
[329348250,1718266249164,-509.40478286,0.00016712,2]
[329348252,1718266249200,-500.0,0.00016712,2]
[329348254,1718266249213,-500.0,0.00016712,2]
[329348255,1718266249232,-500.0,0.00016712,2]
[329348256,1718266249243,-500.0,0.00016712,2]
[329348257,1718266249263,-500.0,0.00016712,2]
[329348258,1718266249279,-500.0,0.00016712,2]
[329348259,1718266249293,-500.0,0.00016712,2]
[329348260,1718266249336,-510.36463853,0.00016712,2]
[329348261,1718266249368,-505.53449038,0.00016712,2]
[329348262,1718266249402,-500.0,0.00016712,2]
[329348263,1718266249585,-2157.95,0.00016712,2]
[329348264,1718266249600,-500.0,0.00016712,2]
[329348265,1718266249612,-503.63936215,0.00016712,2]
[329348266,1718266249623,-500.0,0.00016712,2]
[329348267,1718266249656,-500.0,0.00016712,2]
[329348269,1718266249672,-500.0,0.00016712,2]
[329348271,1718266249683,-973.35,0.00016712,2]
[329348272,1718266249693,-500.0,0.00016712,2]
[329348273,1718266249707,-500.0,0.00016712,2]
[329348274,1718266249724,-500.0,0.00016712,2]
[329348275,1718266249747,-1295.43,0.00016712,2]
[329348276,1718266249761,-500.0,0.00016712,2]
[329348277,1718266249776,-500.0,0.00016712,2]
[329348278,1718266249790,-500.0,0.00016712,2]
[329348279,1718266249802,-500.0,0.00016712,2]
[329348280,1718266249817,-500.0,0.00016712,2]
[329348281,1718266249828,-3663.23,0.00016712,2]
[329348282,1718266249844,-509.17,0.00016712,2]
[329348283,1718266249854,-500.0,0.00016712,2]
[329348284,1718266249865,-500.0,0.00016712,2]
[329348285,1718266249876,-500.0,0.00016712,2]
[329348286,1718266249889,-500.0,0.00016712,2]
[329348287,1718266249908,-500.0,0.00016712,2]
[329348288,1718266249919,-500.0,0.00016712,2]
[329348289,1718266249942,-500.0,0.00016712,2]
[329348290,1718266249954,-500.0,0.00016712,2]
[329348291,1718266249970,-500.0,0.00016712,2]
[329348292,1718266249991,-500.0,0.00016712,2]
[329348293,1718266250015,-1073.74,0.00016712,2]
[329348294,1718266250026,-500.0,0.00016712,2]
[329348295,1718266250037,-500.0,0.00016712,2]
[329348296,1718266250052,-751.61,0.00016712,2]
[329348297,1718266250066,-834.37,0.00016712,2]
[329348298,1718266250077,-500.0,0.00016712,2]
[329348299,1718266250088,-507.78217919,0.00016712,2]
[329348300,1718266250100,-500.0,0.00016712,2]
[329348301,1718266250111,-500.0,0.00016712,2]
[329348302,1718266250122,-500.0,0.00016712,2]
[329348303,1718266250133,-500.0,0.00016712,2]
[329348304,1718266250145,-500.0,0.00016712,2]
[329348305,1718266250155,-500.0,0.00016712,2]
[329348306,1718266250165,-1652.68,0.00016712,2]
[329348307,1718266250179,-500.0,0.00016712,2]
[329348308,1718266250191,-500.0,0.00016712,2]
[329348309,1718266250204,-500.0,0.00016712,2]
[329348310,1718266250215,-500.0,0.00016712,2]
[329348311,1718266250259,-500.0,0.00016712,2]
[329348312,1718266250274,-742.37,0.00016712,2]
[329348313,1718266250296,-500.0,0.00016712,2]
[329348314,1718266250307,-500.0,0.00016712,2]
[329348315,1718266250328,-500.0,0.00016712,2]
[329348316,1718266250380,-500.00000001,0.00016712,2]
[329348317,1718266250426,-500.0,0.00016712,2]
[329348318,1718266250449,-500.0,0.00016712,2]
[329348319,1718266250461,-500.0,0.00016712,2]
[329348320,1718266250472,-2619.21,0.00016712,2]
[329348321,1718266250502,-500.0,0.00016712,2]
[329348322,1718266250514,-409.3258337,0.00016712,2]
[329348323,1718266250527,-500.0,0.00016712,2]
[329348324,1718266250548,-500.0,0.00016712,2]
[329348325,1718266250561,-500.0,0.00016712,2]
[329348326,1718266250573,-500.0,0.00016712,2]
[329348327,1718266250596,-500.0,0.00016712,2]
[329348328,1718266250610,-500.0,0.00016712,2]
[329348329,1718266250624,-407.0,0.00016762,2]
[329348330,1718266250635,-1855.6417537,0.00016779,2]
[329348331,1718266250646,-533.9,0.00016985,2]
[329348332,1718266250674,-500.0,0.00016986,2]
[329348333,1718266250690,-500.0,0.00016986,2]
[329348334,1718266250708,-509.08859947,0.00016986,2]
[329348335,1718266250730,-500.0,0.00016986,2]
[329348336,1718266250779,-500.0,0.00016986,2]
[329348337,1718266250822,-500.0,0.00016986,2]
[329348338,1718266250833,-500.0,0.00016986,2]
[329348339,1718266250860,-500.0,0.00016986,2]
[329348340,1718266250883,-500.0,0.00016986,2]
[329348341,1718266250896,-500.0,0.00016986,2]
[329348342,1718266250909,-953.27,0.00016986,2]
[329348343,1718266250922,-500.0,0.00016986,2]
[329348344,1718266250938,-500.0,0.00016986,2]
[329348345,1718266250952,-500.0,0.00016986,2]
[329348346,1718266250963,-2157.95,0.00016986,2]
[329348347,1718266250982,-500.0,0.00016986,2]
[329348348,1718266250993,-973.35,0.00016986,2]
[329348349,1718266251013,-500.0,0.00016986,2]
[329348350,1718266251025,-1295.43,0.00016986,2]
[329348351,1718266251052,-500.0,0.00016986,2]
[329348352,1718266251063,-500.0,0.00016986,2]
[329348353,1718266251114,-500.0,0.00016986,2]
[329348354,1718266251141,-500.0,0.00016986,2]
[329348355,1718266251165,-3663.23,0.00016986,2]
[329348356,1718266251192,-500.0,0.00016986,2]
[329348357,1718266251207,-500.0,0.00016986,2]
[329348358,1718266251219,-500.0,0.00016986,2]
[329348359,1718266251256,-500.0,0.00016986,2]
[329348360,1718266251289,-500.0,0.00016986,2]
[329348361,1718266251320,-151.82228545,0.00016986,2]
[329348362,1718266251336,-500.0,0.00016986,2]
[329348363,1718266251362,-1073.74,0.00016986,2]
[329348364,1718266251374,-500.0,0.00016986,2]
[329348365,1718266251405,-751.61,0.00016986,2]
[329348366,1718266251430,-834.37,0.00016986,2]